[Event "Chpt France Universitaire 2024"]
[Site "Bastia, France"]
[Date "2024.04.06"]
[Round "2.12"]
[White "Roux, Baptiste"]
[Black "Alif, Yassine"]
[Result "1-0"]
[TimeControl "15min+5s"]
[WhiteElo "2361"]
[BlackElo "2003"]

1. e4 {[%clk 00:15:05]} {[%emt 00:00:01]} e5 {[%clk 00:15:05]} {[%emt
00:00:01]} 2. Nf3 {[%clk 00:15:05]} {[%emt 00:00:01]} Nc6 {[%clk 00:15:05]} 3.
Bb5 {[%clk 00:15:05]} {[%emt 00:00:01]} a6 {[%clk 00:15:05]} {[%emt 00:00:01]}
4. Ba4 {[%clk 00:15:05]} Nf6 {[%clk 00:15:05]} {[%emt 00:00:01]} 5. d4 {[%clk
00:15:05]} {[%emt 00:00:01]} exd4 {[%clk 00:14:49]} {[%emt 00:00:21]} 6. O-O
{[%clk 00:15:05]} {[%emt 00:00:02]} b5 {[%clk 00:13:28]} {[%emt 00:01:27]} 7.
Bb3 {[%clk 00:15:05]} {[%emt 00:00:01]} d6 {[%clk 00:13:13]} {[%emt 00:00:20]}
8. Ng5 {[%clk 00:15:05]} {[%emt 00:00:01]} Ne5 {[%clk 00:13:13]} {[%emt
00:00:04]} 9. f4 {[%clk 00:15:05]} Nc4 {[%clk 00:13:13]} 10. e5 {[%emt
00:02:00]} Nd5 {[%clk 00:11:12]} {[%emt 00:00:07]} 11. Bxc4 {[%clk 00:12:42]}
{[%emt 00:02:28]} bxc4 {[%clk 00:11:12]} {[%emt 00:00:02]} 12. Qxd4 {[%clk
00:12:35]} {[%emt 00:00:12]} c6 {[%clk 00:10:55]} {[%emt 00:00:22]} 13. exd6
{[%clk 00:11:50]} {[%emt 00:00:50]} Qb6 {[%clk 00:10:45]} {[%emt 00:00:15]} 14.
Re1+ {[%clk 00:11:12]} {[%emt 00:00:42]} Kd7 {[%clk 00:10:26]} {[%emt
00:00:24]} 15. Qxb6 {[%clk 00:11:09]} {[%emt 00:00:08]} Nxb6 {[%clk 00:10:26]}
{[%emt 00:00:02]} 16. Nxf7 {[%clk 00:11:09]} {[%emt 00:00:02]} Rg8 {[%clk
00:10:26]} {[%emt 00:00:01]} 17. Nc3 {[%clk 00:09:29]} {[%emt 00:01:45]} Bxd6
{[%clk 00:07:21]} {[%emt 00:03:10]} 18. Rd1 {[%clk 00:09:22]} {[%emt 00:00:12]}
Nd5 {[%clk 00:07:21]} {[%emt 00:00:01]} 19. Nxd5 {[%clk 00:09:11]} {[%emt
00:00:16]} cxd5 {[%clk 00:07:21]} {[%emt 00:00:01]} 20. Rxd5 {[%clk 00:09:09]}
{[%emt 00:00:07]} Ke6 {[%clk 00:07:21]} {[%emt 00:00:02]} 21. Rxd6+ {[%clk
00:09:02]} {[%emt 00:00:12]} Kxf7 {[%clk 00:07:21]} {[%emt 00:00:01]} 22. Bd2
{[%clk 00:08:13]} {[%emt 00:00:54]} Bf5 {[%clk 00:07:13]} {[%emt 00:00:14]} 23.
Bc3 {[%clk 00:08:13]} {[%emt 00:00:01]} Rge8 {[%clk 00:04:19]} {[%emt
00:02:59]} 24. Kf2 {[%clk 00:07:41]} {[%emt 00:00:37]} Re7 {[%clk 00:03:44]}
{[%emt 00:00:40]} 25. Re1 {[%clk 00:07:02]} {[%emt 00:00:43]} Rxe1 {[%clk
00:02:57]} {[%emt 00:00:53]} 26. Kxe1 {[%clk 00:07:02]} {[%emt 00:00:05]} Ra7
{[%clk 00:02:29]} {[%emt 00:00:33]} 27. Rc6 {[%clk 00:04:47]} {[%emt 00:02:20]}
Bxc2 {[%clk 00:01:31]} {[%emt 00:01:03]} 28. Rxc4 {[%clk 00:04:33]} {[%emt
00:00:19]} Bf5 {[%clk 00:01:31]} {[%emt 00:00:01]} 29. Kf2 {[%clk 00:04:25]}
{[%emt 00:00:13]} Be6 {[%clk 00:01:27]} {[%emt 00:00:09]} 30. Ra4 {[%clk
00:04:25]} {[%emt 00:00:02]} g6 {[%clk 00:01:20]} {[%emt 00:00:12]} 31. Ke3
{[%clk 00:03:56]} {[%emt 00:00:34]} Bd5 {[%clk 00:01:02]} {[%emt 00:00:23]} 32.
g3 {[%clk 00:03:56]} {[%emt 00:00:04]} Bc6 {[%clk 00:01:02]} {[%emt 00:00:02]}
33. Rb4 {[%clk 00:03:47]} {[%emt 00:00:13]} a5 {[%clk 00:00:57]} {[%emt
00:00:11]} 34. Rb6 {[%clk 00:03:46]} {[%emt 00:00:07]} Bd5 {[%clk 00:00:52]}
{[%emt 00:00:10]} 35. a4 {[%clk 00:03:13]} {[%emt 00:00:37]} Be6 {[%clk
00:00:44]} {[%emt 00:00:12]} 36. Rb8 {[%clk 00:02:29]} {[%emt 00:00:50]} Re7
{[%clk 00:00:17]} {[%emt 00:00:32]} 37. Be5 {[%clk 00:02:23]} {[%emt 00:00:10]}
Bd7 {[%clk 00:00:17]} {[%emt 00:00:06]} 38. b3 {[%clk 00:02:22]} {[%emt
00:00:06]} Ke6 {[%clk 00:00:17]} {[%emt 00:00:02]} 39. Ra8 {[%clk 00:02:09]}
{[%emt 00:00:17]} Kf5 {[%clk 00:00:17]} {[%emt 00:00:03]} 40. Rxa5 {[%clk
00:01:20]} {[%emt 00:00:54]} Kg4 {[%clk 00:00:17]} {[%emt 00:00:01]} 41. Ra7
{[%clk 00:01:08]} {[%emt 00:00:16]} Kh3 {[%clk 00:00:09]} {[%emt 00:00:14]} 42.
Kf2 {[%clk 00:01:04]} {[%emt 00:00:09]} Kxh2 {[%clk 00:00:09]} {[%emt
00:00:02]} 43. b4 {[%clk 00:01:00]} {[%emt 00:00:09]} h5 {[%clk 00:00:09]} 44.
b5 {[%clk 00:00:58]} {[%emt 00:00:07]} Kh3 {[%clk 00:00:09]} {[%emt 00:00:04]}
45. b6 {[%clk 00:00:52]} {[%emt 00:00:12]} g5 {[%clk 00:00:07]} {[%emt
00:00:07]} 46. b7 {[%clk 00:00:48]} {[%emt 00:00:09]} 1-0

[Event "Chpt France Universitaire 2024"]
[Site "Bastia, France"]
[Date "2024.04.06"]
[Round "3.1"]
[White "Rakotomaharo, Fy Antenaina"]
[Black "Arcelin, Gael"]
[Result "1-0"]
[TimeControl "15min+5s"]
[WhiteElo "2448"]
[BlackElo "2126"]

1. e4 {[%clk 00:15:05]} {[%emt 00:00:02]} c5 {[%clk 00:15:05]} {[%emt
00:00:02]} 2. a4 {[%clk 00:15:05]} {[%emt 00:00:03]} Nf6 {[%clk 00:14:40]}
{[%emt 00:00:30]} 3. e5 {[%clk 00:14:58]} {[%emt 00:00:12]} Nd5 {[%clk
00:14:40]} {[%emt 00:00:01]} 4. Nc3 {[%clk 00:14:58]} {[%emt 00:00:01]} Nxc3
{[%clk 00:14:16]} {[%emt 00:00:29]} 5. dxc3 {[%clk 00:14:58]} {[%emt 00:00:03]}
Nc6 {[%clk 00:14:16]} {[%emt 00:00:01]} 6. Nf3 {[%clk 00:14:58]} {[%emt
00:00:02]} e6 {[%clk 00:14:14]} {[%emt 00:00:07]} 7. Bf4 {[%clk 00:14:55]}
{[%emt 00:00:08]} Qb6 {[%clk 00:14:12]} {[%emt 00:00:07]} 8. b3 {[%clk
00:14:48]} {[%emt 00:00:12]} Qc7 {[%clk 00:14:12]} {[%emt 00:00:03]} 9. Qd2
{[%clk 00:14:39]} {[%emt 00:00:13]} b6 {[%clk 00:14:11]} {[%emt 00:00:07]} 10.
h4 {[%clk 00:14:19]} {[%emt 00:00:25]} Bb7 {[%clk 00:14:11]} {[%emt 00:00:03]}
11. h5 {[%clk 00:14:19]} {[%emt 00:00:02]} h6 {[%clk 00:14:11]} {[%emt
00:00:02]} 12. O-O-O {[%clk 00:13:56]} {[%emt 00:00:29]} O-O-O {[%clk
00:14:01]} {[%emt 00:00:15]} 13. Rh3 {[%clk 00:13:56]} {[%emt 00:00:04]} Ne7
{[%clk 00:07:16]} {[%emt 00:06:50]} 14. Kb2 {[%clk 00:13:50]} {[%emt 00:00:11]}
g5 {[%clk 00:06:01]} {[%emt 00:01:20]} 15. hxg6 {[%clk 00:13:28]} {[%emt
00:00:27]} Nxg6 {[%clk 00:06:01]} {[%emt 00:00:02]} 16. Bd3 {[%clk 00:08:53]}
{[%emt 00:04:40]} Bg7 {[%clk 00:04:55]} {[%emt 00:01:12]} 17. Bxg6 {[%clk
00:06:43]} {[%emt 00:02:15]} fxg6 {[%clk 00:04:55]} {[%emt 00:00:02]} 18. Bxh6
{[%clk 00:06:41]} {[%emt 00:00:06]} Bxf3 {[%clk 00:03:34]} {[%emt 00:01:26]} 19.
gxf3 {[%clk 00:06:41]} {[%emt 00:00:01]} Bxe5 {[%clk 00:02:47]} {[%emt
00:00:52]} 20. Rdh1 {[%clk 00:06:39]} {[%emt 00:00:07]} Kb7 {[%clk 00:02:22]}
{[%emt 00:00:30]} 21. Qe3 {[%clk 00:06:19]} {[%emt 00:00:24]} Rhg8 {[%clk
00:01:17]} {[%emt 00:01:10]} 1-0

[Event "Chpt France Universitaire 2024"]
[Site "Bastia, France"]
[Date "2024.04.06"]
[Round "3.2"]
[White "Aghamir Alrobiai, Nizar"]
[Black "Gatineau, Yovann"]
[Result "0-1"]
[TimeControl "15min+5s"]
[WhiteElo "2098"]
[BlackElo "2408"]

1. e4 {[%clk 00:15:05]} {[%emt 00:00:02]} e6 {[%clk 00:15:05]} {[%emt
00:00:01]} 2. d4 {[%clk 00:15:05]} {[%emt 00:00:03]} d5 {[%clk 00:15:05]}
{[%emt 00:00:01]} 3. Nd2 {[%clk 00:15:05]} {[%emt 00:00:01]} c5 {[%clk
00:15:05]} {[%emt 00:00:01]} 4. Ngf3 {[%clk 00:14:58]} {[%emt 00:00:12]} cxd4
{[%clk 00:15:05]} {[%emt 00:00:05]} 5. exd5 {[%clk 00:14:55]} {[%emt 00:00:09]}
Qxd5 {[%clk 00:15:05]} {[%emt 00:00:02]} 6. Bc4 {[%clk 00:14:55]} {[%emt
00:00:03]} Qd7 {[%clk 00:15:05]} {[%emt 00:00:02]} 7. O-O {[%clk 00:14:51]}
{[%emt 00:00:08]} Nf6 {[%clk 00:14:45]} {[%emt 00:00:26]} 8. Nb3 {[%clk
00:14:50]} {[%emt 00:00:07]} Nc6 {[%clk 00:14:21]} {[%emt 00:00:29]} 9. Nbxd4
{[%clk 00:14:48]} {[%emt 00:00:07]} Nxd4 {[%clk 00:14:19]} {[%emt 00:00:06]} 10.
Qxd4 {[%clk 00:14:45]} {[%emt 00:00:08]} Qxd4 {[%clk 00:13:54]} {[%emt
00:00:31]} 11. Nxd4 {[%clk 00:14:45]} {[%emt 00:00:02]} Bd7 {[%clk 00:13:54]}
{[%emt 00:00:01]} 12. Be2 {[%clk 00:14:19]} {[%emt 00:00:31]} Rc8 {[%clk
00:09:51]} {[%emt 00:04:08]} 13. Bf3 {[%clk 00:11:46]} {[%emt 00:02:38]} Bc5
{[%clk 00:09:20]} {[%emt 00:00:36]} 14. Nb3 {[%clk 00:10:11]} {[%emt 00:01:39]}
Bb6 {[%clk 00:09:20]} {[%emt 00:00:03]} 15. a4 {[%clk 00:09:05]} {[%emt
00:01:11]} Rxc2 {[%clk 00:07:12]} {[%emt 00:02:14]} 16. a5 {[%clk 00:09:05]}
{[%emt 00:00:04]} Bc7 {[%clk 00:07:12]} {[%emt 00:00:01]} 17. Bxb7 {[%clk
00:07:27]} {[%emt 00:01:44]} O-O {[%clk 00:07:12]} {[%emt 00:00:02]} 18. Nd4
{[%clk 00:05:07]} {[%emt 00:02:24]} Rc5 {[%clk 00:06:19]} {[%emt 00:00:58]} 19.
Bd2 {[%clk 00:04:15]} {[%emt 00:00:58]} Rb8 {[%clk 00:04:12]} {[%emt 00:02:12]}
20. a6 {[%clk 00:03:50]} {[%emt 00:00:30]} Bb6 {[%clk 00:03:03]} {[%emt
00:01:14]} 21. Nf3 {[%clk 00:03:03]} {[%emt 00:00:51]} Rc2 {[%clk 00:02:42]}
{[%emt 00:00:26]} 22. Bf4 {[%clk 00:02:20]} {[%emt 00:00:48]} Re8 {[%clk
00:02:29]} {[%emt 00:00:18]} 23. Rac1 {[%clk 00:01:34]} {[%emt 00:00:51]} Rxb2
{[%clk 00:02:11]} {[%emt 00:00:23]} 24. Be5 {[%clk 00:01:02]} {[%emt 00:00:37]}
Ra2 {[%clk 00:02:11]} {[%emt 00:00:05]} 25. Bd4 {[%clk 00:01:02]} {[%emt
00:00:05]} Bb5 {[%clk 00:00:49]} {[%emt 00:01:27]} 26. Ra1 {[%clk 00:00:56]}
{[%emt 00:00:11]} Rxa1 {[%clk 00:00:46]} {[%emt 00:00:08]} 27. Rxa1 {[%clk
00:00:56]} {[%emt 00:00:03]} Nd7 {[%clk 00:00:41]} {[%emt 00:00:11]} 28. Bxb6
{[%clk 00:00:31]} {[%emt 00:00:30]} Nxb6 {[%clk 00:00:41]} {[%emt 00:00:01]} 29.
Rb1 {[%clk 00:00:31]} {[%emt 00:00:01]} Bc4 {[%clk 00:00:38]} {[%emt 00:00:07]}
30. Ne5 {[%clk 00:00:21]} {[%emt 00:00:15]} Bd5 {[%clk 00:00:36]} {[%emt
00:00:07]} 31. f3 {[%clk 00:00:08]} {[%emt 00:00:18]} Bxb7 {[%clk 00:00:10]}
{[%emt 00:00:32]} 32. axb7 {[%clk 00:00:08]} {[%emt 00:00:01]} Rb8 {[%clk
00:00:10]} 33. Rd1 {[%clk 00:00:08]} {[%emt 00:00:03]} f6 {[%clk 00:00:08]}
{[%emt 00:00:07]} 34. Nc6 {[%clk 00:00:08]} Rxb7 {[%clk 00:00:08]} {[%emt
00:00:01]} 35. Rd8+ {[%clk 00:00:08]} Kf7 {[%clk 00:00:08]} 36. Kf2 {[%clk
00:00:08]} {[%emt 00:00:04]} Rc7 {[%clk 00:00:08]} 37. Na5 {[%clk 00:00:08]}
{[%emt 00:00:05]} Nd5 {[%clk 00:00:08]} {[%emt 00:00:04]} 38. Rb8 {[%clk
00:00:08]} {[%emt 00:00:02]} Rc2+ {[%emt 00:00:01]} 39. Kg3 {[%emt 00:00:01]}
h5 {[%emt 00:00:03]} 40. h4 {[%emt 00:00:01]} g5 {[%clk 00:00:07]} 41. Rb7+
{[%clk 00:00:08]} {[%emt 00:00:03]} Rc7 {[%clk 00:00:07]} {[%emt 00:00:01]} 42.
Rb2 {[%clk 00:00:08]} {[%emt 00:00:03]} Kg6 {[%clk 00:00:07]} {[%emt 00:00:02]}
43. hxg5 {[%clk 00:00:08]} {[%emt 00:00:02]} fxg5 {[%clk 00:00:07]} {[%emt
00:00:01]} 44. Re2 {[%clk 00:00:08]} {[%emt 00:00:03]} Kf6 {[%clk 00:00:07]}
{[%emt 00:00:01]} 45. Nb3 {[%clk 00:00:08]} h4+ {[%clk 00:00:07]} {[%emt
00:00:01]} 46. Kh2 {[%clk 00:00:08]} Rc4 {[%clk 00:00:07]} {[%emt 00:00:01]} 47.
Ra2 {[%clk 00:00:08]} {[%emt 00:00:02]} Rb4 {[%clk 00:00:06]} {[%emt 00:00:07]}
48. Nd2 {[%clk 00:00:08]} {[%emt 00:00:02]} Rb7 {[%clk 00:00:06]} {[%emt
00:00:01]} 49. Ne4+ {[%clk 00:00:08]} Kg6 {[%clk 00:00:06]} 50. Nd6 {[%clk
00:00:08]} {[%emt 00:00:02]} Rd7 {[%clk 00:00:06]} {[%emt 00:00:01]} 51. Nb5
{[%clk 00:00:08]} Nf4 {[%clk 00:00:06]} {[%emt 00:00:02]} 52. g3 {[%clk
00:00:08]} {[%emt 00:00:05]} hxg3+ {[%clk 00:00:06]} {[%emt 00:00:01]} 53. Kxg3
{[%clk 00:00:08]} a6 {[%clk 00:00:06]} {[%emt 00:00:02]} 54. Rxa6 {[%clk
00:00:08]} {[%emt 00:00:03]} Rd2 {[%clk 00:00:06]} 0-1

[Event "Chpt France Universitaire 2024"]
[Site "Bastia, France"]
[Date "2024.04.06"]
[Round "3.3"]
[White "Mathieu, Phileas"]
[Black "Baroyan, Davit"]
[Result "1/2-1/2"]
[TimeControl "15min+5s"]
[WhiteElo "2325"]
[BlackElo "2118"]

1. e4 {[%clk 00:15:05]} c5 {[%clk 00:15:05]} {[%emt 00:00:01]} 2. Nf3 {[%clk
00:15:05]} {[%emt 00:00:02]} d6 {[%clk 00:15:05]} {[%emt 00:00:01]} 3. d4
{[%clk 00:15:05]} cxd4 {[%clk 00:15:05]} {[%emt 00:00:01]} 4. Nxd4 {[%clk
00:15:05]} Nf6 {[%clk 00:15:05]} 5. Nc3 {[%clk 00:15:05]} g6 {[%clk 00:15:05]}
{[%emt 00:00:01]} 6. Be3 {[%clk 00:15:05]} {[%emt 00:00:03]} Bg7 {[%clk
00:15:05]} {[%emt 00:00:01]} 7. f3 {[%clk 00:15:05]} O-O {[%clk 00:15:05]}
{[%emt 00:00:01]} 8. Qd2 {[%clk 00:15:05]} Nc6 {[%clk 00:15:05]} 9. O-O-O
{[%clk 00:15:05]} {[%emt 00:00:01]} d5 {[%clk 00:15:05]} 10. exd5 {[%clk
00:15:05]} {[%emt 00:00:01]} Nxd5 {[%clk 00:15:05]} 11. Nxc6 {[%clk 00:15:05]}
{[%emt 00:00:01]} bxc6 {[%clk 00:15:05]} 12. Bd4 e5 {[%emt 00:00:02]} 13. Bc5
{[%clk 00:15:05]} Re8 {[%clk 00:15:05]} 14. Ne4 {[%clk 00:15:05]} Qc7 {[%clk
00:15:03]} {[%emt 00:00:08]} 15. h4 {[%clk 00:15:00]} {[%emt 00:00:10]} f5
{[%clk 00:14:56]} {[%emt 00:00:12]} 16. Nd6 {[%clk 00:14:01]} {[%emt 00:01:04]}
Rd8 {[%clk 00:14:56]} {[%emt 00:00:01]} 17. Nxc8 {[%clk 00:14:01]} Raxc8 {[%clk
00:14:56]} {[%emt 00:00:01]} 18. Bc4 {[%clk 00:13:53]} {[%emt 00:00:13]} h5
{[%clk 00:14:37]} {[%emt 00:00:24]} 19. Kb1 {[%clk 00:11:38]} {[%emt 00:02:21]}
Kh7 {[%clk 00:13:27]} {[%emt 00:01:15]} 20. g4 {[%clk 00:11:25]} {[%emt
00:00:17]} e4 {[%clk 00:12:50]} {[%emt 00:00:42]} 21. Qf2 {[%clk 00:08:55]}
{[%emt 00:02:35]} hxg4 {[%clk 00:08:26]} {[%emt 00:04:28]} 22. h5 {[%clk
00:08:28]} {[%emt 00:00:32]} g5 {[%clk 00:08:23]} {[%emt 00:00:09]} 23. fxe4
{[%clk 00:08:28]} {[%emt 00:00:02]} Nf4 {[%clk 00:07:58]} {[%emt 00:00:30]} 24.
exf5 {[%clk 00:07:03]} {[%emt 00:01:31]} Rb8 {[%clk 00:07:41]} {[%emt
00:00:23]} 25. Bb3 {[%clk 00:06:20]} {[%emt 00:00:47]} a5 {[%clk 00:07:41]}
{[%emt 00:00:01]} 26. h6 {[%clk 00:04:43]} {[%emt 00:01:42]} Bf6 {[%clk
00:07:22]} {[%emt 00:00:24]} 27. Rxd8 {[%clk 00:03:04]} {[%emt 00:01:45]} Qxd8
{[%clk 00:06:04]} {[%emt 00:01:23]} 28. Ba3 {[%clk 00:03:04]} Bd4 {[%clk
00:05:14]} {[%emt 00:00:56]} 29. Qg3 {[%clk 00:02:54]} {[%emt 00:00:15]} Qf6
{[%clk 00:04:50]} {[%emt 00:00:29]} 30. c3 {[%clk 00:02:03]} {[%emt 00:00:56]}
Be5 {[%clk 00:04:49]} {[%emt 00:00:06]} 31. Qxg4 {[%emt 00:00:13]} c5 {[%clk
00:03:51]} {[%emt 00:01:03]} 32. Qd1 {[%clk 00:01:27]} {[%emt 00:00:34]} Qc6
{[%clk 00:03:19]} {[%emt 00:00:37]} 33. Re1 {[%clk 00:01:23]} {[%emt 00:00:09]}
Bf6 {[%clk 00:03:06]} {[%emt 00:00:18]} 34. Ba4 {[%clk 00:00:58]} {[%emt
00:00:31]} Qb7 {[%clk 00:02:34]} {[%emt 00:00:37]} 35. Qd6 {[%clk 00:00:39]}
{[%emt 00:00:24]} Nd5 {[%clk 00:02:08]} {[%emt 00:00:32]} 36. Bb3 {[%clk
00:00:30]} {[%emt 00:00:13]} c4 {[%clk 00:02:03]} {[%emt 00:00:10]} 37. Bxc4
{[%clk 00:00:17]} {[%emt 00:00:18]} Nxc3+ {[%clk 00:02:03]} {[%emt 00:00:01]}
38. Kc1 {[%clk 00:00:12]} {[%emt 00:00:11]} Ne4 {[%clk 00:00:45]} {[%emt
00:01:22]} 39. Rxe4 {[%clk 00:00:08]} {[%emt 00:00:09]} Qxe4 {[%clk 00:00:30]}
{[%emt 00:00:21]} 40. Qxb8 Qxc4+ {[%emt 00:00:01]} 41. Kd1 {[%clk 00:00:08]}
Qd3+ {[%clk 00:00:23]} {[%emt 00:00:13]} 42. Kc1 {[%clk 00:00:08]} Qxf5 {[%clk
00:00:14]} {[%emt 00:00:14]} 43. Qh2 {[%clk 00:00:08]} {[%emt 00:00:04]} Be5
{[%clk 00:00:14]} {[%emt 00:00:04]} 44. Qc2 {[%clk 00:00:08]} {[%emt 00:00:03]}
Bf4+ {[%clk 00:00:14]} {[%emt 00:00:05]} 45. Kd1 {[%clk 00:00:08]} {[%emt
00:00:01]} Qxc2+ {[%clk 00:00:14]} 46. Kxc2 {[%clk 00:00:08]} g4 {[%clk
00:00:14]} {[%emt 00:00:02]} 47. Bc5 {[%clk 00:00:08]} {[%emt 00:00:02]} Bh2
{[%clk 00:00:12]} {[%emt 00:00:06]} 48. Kb3 {[%clk 00:00:08]} {[%emt 00:00:02]}
g3 {[%clk 00:00:12]} {[%emt 00:00:05]} 49. Ka4 {[%clk 00:00:08]} g2 {[%clk
00:00:12]} {[%emt 00:00:01]} 50. Kxa5 {[%clk 00:00:08]} {[%emt 00:00:02]} g1=Q
{[%clk 00:00:08]} {[%emt 00:00:09]} 51. Bxg1 {[%clk 00:00:08]} {[%emt
00:00:02]} Bxg1 {[%clk 00:00:08]} 52. b4 {[%clk 00:00:08]} {[%emt 00:00:04]}
Kxh6 {[%clk 00:00:08]} 53. b5 {[%clk 00:00:08]} Kg6 {[%clk 00:00:08]} {[%emt
00:00:03]} 54. b6 {[%clk 00:00:08]} Kf6 {[%clk 00:00:08]} {[%emt 00:00:03]} 55.
Ka6 {[%clk 00:00:08]} {[%emt 00:00:05]} Ke6 {[%clk 00:00:08]} {[%emt 00:00:02]}
56. Kb7 {[%clk 00:00:08]} Kd5 {[%clk 00:00:07]} {[%emt 00:00:06]} 57. a4 {[%clk
00:00:08]} Kc5 {[%clk 00:00:07]} {[%emt 00:00:05]} 58. Kc7 {[%clk 00:00:08]}
{[%emt 00:00:04]} Bh2+ {[%clk 00:00:07]} {[%emt 00:00:01]} 59. Kb7 {[%clk
00:00:08]} {[%emt 00:00:02]} Kb4 {[%clk 00:00:07]} {[%emt 00:00:01]} 60. Ka6
{[%clk 00:00:08]} {[%emt 00:00:02]} Kxa4 {[%clk 00:00:07]} {[%emt 00:00:02]} 61.
Kb7 {[%emt 00:00:32]} 1/2-1/2

[Event "Chpt France Universitaire 2024"]
[Site "Bastia, France"]
[Date "2024.04.06"]
[Round "3.4"]
[White "Harutyunyan, Safar"]
[Black "Hingouet, Matthieu"]
[Result "1-0"]
[TimeControl "15min+5s"]
[WhiteElo "2266"]
[BlackElo "2210"]

1. e4 {[%clk 00:15:05]} {[%emt 00:00:01]} c6 {[%clk 00:15:05]} {[%emt
00:00:01]} 2. d4 {[%clk 00:15:05]} {[%emt 00:00:01]} d5 {[%clk 00:15:05]}
{[%emt 00:00:01]} 3. Nc3 {[%clk 00:15:05]} dxe4 {[%clk 00:15:05]} {[%emt
00:00:02]} 4. Nxe4 {[%clk 00:15:05]} {[%emt 00:00:01]} Nf6 {[%clk 00:15:05]}
{[%emt 00:00:02]} 5. Nxf6+ {[%clk 00:15:05]} {[%emt 00:00:01]} exf6 {[%clk
00:15:05]} 6. c3 {[%clk 00:15:05]} Bd6 {[%clk 00:15:05]} {[%emt 00:00:01]} 7.
Bd3 {[%clk 00:15:05]} {[%emt 00:00:01]} Na6 {[%clk 00:15:05]} 8. Qe2+ {[%clk
00:14:54]} {[%emt 00:00:17]} Be6 {[%clk 00:13:44]} {[%emt 00:01:26]} 9. d5
{[%clk 00:12:19]} {[%emt 00:02:40]} cxd5 {[%clk 00:13:08]} {[%emt 00:00:42]} 10.
Bb5+ {[%clk 00:12:19]} {[%emt 00:00:01]} Kf8 {[%clk 00:12:55]} {[%emt
00:00:18]} 11. Be3 {[%clk 00:12:18]} {[%emt 00:00:06]} Nc7 {[%clk 00:11:02]}
{[%emt 00:01:58]} 12. Bd3 {[%clk 00:12:12]} {[%emt 00:00:11]} h5 {[%clk
00:11:02]} {[%emt 00:00:05]} 13. Nf3 {[%clk 00:12:12]} {[%emt 00:00:03]} g6
{[%clk 00:09:46]} {[%emt 00:01:21]} 14. Nd4 {[%clk 00:11:47]} {[%emt 00:00:29]}
Kg7 {[%clk 00:09:02]} {[%emt 00:00:50]} 15. O-O-O {[%clk 00:11:46]} {[%emt
00:00:06]} Qd7 {[%clk 00:07:11]} {[%emt 00:01:56]} 16. h3 {[%clk 00:11:45]}
{[%emt 00:00:06]} h4 {[%clk 00:04:59]} {[%emt 00:02:18]} 17. Rhe1 {[%clk
00:11:43]} {[%emt 00:00:06]} Rae8 {[%clk 00:03:57]} {[%emt 00:01:06]} 18. Qd2
{[%clk 00:11:28]} {[%emt 00:00:20]} b5 {[%clk 00:03:41]} {[%emt 00:00:22]} 19.
Kb1 {[%clk 00:11:11]} {[%emt 00:00:21]} Rb8 {[%clk 00:02:35]} {[%emt 00:01:11]}
20. Rc1 {[%clk 00:07:11]} {[%emt 00:04:06]} b4 {[%clk 00:02:01]} {[%emt
00:00:39]} 21. c4 {[%clk 00:05:16]} {[%emt 00:02:00]} dxc4 {[%clk 00:01:33]}
{[%emt 00:00:33]} 22. Nxe6+ {[%clk 00:05:16]} {[%emt 00:00:02]} Nxe6 {[%clk
00:01:21]} {[%emt 00:00:17]} 23. Bxc4 {[%clk 00:05:10]} {[%emt 00:00:10]} Rhe8
{[%clk 00:00:53]} {[%emt 00:00:33]} 24. Red1 {[%clk 00:05:05]} {[%emt
00:00:10]} Rbd8 {[%clk 00:00:41]} {[%emt 00:00:18]} 25. Qd5 {[%clk 00:04:37]}
{[%emt 00:00:33]} Qe7 {[%clk 00:00:23]} {[%emt 00:00:23]} 26. Qe4 {[%clk
00:03:47]} {[%emt 00:00:56]} Rh8 {[%clk 00:00:23]} 27. Re1 {[%clk 00:03:31]}
{[%emt 00:00:21]} Rhe8 {[%clk 00:00:08]} {[%emt 00:00:21]} 28. Qxh4 {[%clk
00:03:21]} {[%emt 00:00:14]} g5 {[%clk 00:00:08]} {[%emt 00:00:02]} 29. Qg4
{[%clk 00:03:12]} {[%emt 00:00:14]} Nf4 {[%clk 00:00:08]} 30. Ka1 {[%clk
00:01:38]} {[%emt 00:01:39]} Qe4 {[%clk 00:00:08]} 31. g3 {[%clk 00:01:38]}
{[%emt 00:00:01]} Ng6 {[%clk 00:00:08]} {[%emt 00:00:03]} 1-0